[Event "Turkish Club Cup 2019"]
[Site "Konya"]
[Date "2019.07.18"]
[Round "5"]
[White "Akbas, Umut Ata"]
[Black "Erdogan, Tekin Alp"]
[Result "1/2-1/2"]
[ECO "C29"]
[WhiteElo "1912"]
[BlackElo "1777"]
[Annotator "NA RC"]
[PlyCount "95"]
[EventDate "2019.07.16"]
[EventType "team-tourn"]
[EventCountry "TUR"]
[SourceTitle "playchess.com"]
[Source "ChessBase"]
[SourceQuality "1"]
[TimeControl "5400+30"]

1. e4 {[%emt 0:00:30]} e5 {[%emt 0:00:30]} 2. Nc3 {[%emt 0:00:30]} Nf6 {[%emt 0:00:00]} 3. f4 {[%emt 0:00:00]} d5 {[%emt 0:00:00]} 4. fxe5 {[%emt 0:00:00]} Nxe4 {[%emt 0:00:30]} 5. Nf3 {[%emt 0:00:00]} Be7 {[%emt 0:00:30]} 6. Be2 {[%emt 0:02:00]} O-O {[%emt 0:02:30]} 7. O-O {[%emt 0:00:30]} f6 {[%emt 0:01:30]} 8. d4 {[%emt 0:02:30]} Be6 {[%emt 0:03:30]} 9. Be3 {[%emt 0:01:30]} Nxc3 {[%emt 0:09:30]} 10. bxc3 {[%emt 0:00:30]} Nc6 {[%emt 0:00:30]} 11. exf6 {[%emt 0:01:30]} Bxf6 {[%emt 0:00:30]} 12. Bd3 {[%emt 0:06:30]} Qe7 {[%emt 0:06:30]} 13. Qd2 {[%emt 0:02:30]} Na5 {[%emt 0:06:30]} 14. Rae1 {[%emt 0:09:30]} Nc4 {[%emt 0:03:30]} 15. Bxc4 {[%emt 0:07:30]} dxc4 {[%emt 0:00:30]} 16. Bg5 {[%emt 0:00:30]} Bxg5 {[%emt 0:06:30]} 17. Nxg5 {[%emt 0:00:00]} Rxf1+ {[%emt 0:00:30]} 18. Rxf1 {[%emt 0:00:00]} Bd5 {[%emt 0:00:30]} 19. Re1 {[%emt 0:07:30]} Qf6 {[%emt 0:02:30]} 20. Re5 {[%emt 0:00:30]} Rf8 {[%emt 0:02:30]} 21. Qe2 {[%emt 0:00:30]} c6 {[%emt 0:00:30]} 22. Nh3 {[%emt 0:11:30]} Qh6 {[%emt 0:06:30]} 23. Ng5 {[%emt 0:06:30]} Qf6 {[%emt 0:00:00]} 24. Ne4 {[%emt 0:07:30]} Qh6 {[%emt 0:07:00]} 25. Nd2 {[%emt 0:00:30]} b5 {[%emt 0:01:30]} 26. Nf1 {[%emt 0:03:30]} Qc1 {[%emt 0:03:30]} 27. Re8 {[%emt 0:01:30]} Qf4 {[%emt 0:01:30]} 28. Re7 {[%emt 0:01:30]} Rf7 {[%emt 0:01:30]} 29. Re5 {[%emt 0:01:30]} Rf8 {[%emt 0:06:30]} 30. Ne3 {[%emt 0:00:30]} Be4 {[%emt 0:01:30]} 31. Qe1 {[%emt 0:10:45]} Bg6 {[%emt 0:01:30]} 32. h4 {[%emt 0:00:16]} h6 {[%emt 0:03:30]} 33. h5 {[%emt 0:02:51]} Bh7 {[%emt 0:00:30]} 34. Qe2 {[%emt 0:01:45]} Qg3 {[%emt 0:02:30]} 35. Re7 {[%emt 0:01:18]} a6 {[%emt 0:00:35]} 36. Re5 {[%emt 0:03:04]} Qf4 {[%emt 0:02:14]} 37. Re6 {[%emt 0:00:55]} Qg3 {[%emt 0:01:06]} 38. a4 {[%emt 0:04:05]} bxa4 {[%emt 0:09:33]} 39. Rxc6 {[%emt 0:00:06]} Kh8 {[%emt 0:00:00]} 40. Rxc4 {[%emt 0:02:00]} a3 {[%emt 0:02:59]} 41. Ra4 {[%emt 0:00:05]} Re8 {[%emt 0:01:14]} 42. Nf1 {[%emt 0:00:03]} Rxe2 {[%emt 0:01:04]} 43. Nxg3 {[%emt 0:00:30]} Re3 {[%emt 0:00:00]} 44. Kf2 {[%emt 0:01:45]} Rxc3 {[%emt 0:00:11]} 45. Ne2 {[%emt 0:00:05]} Bxc2 {[%emt 0:01:20]} 46. Rxa6 {[%emt 0:00:06]} Rd3 {[%emt 0:00:21]} 47. Nf4 {[%emt 0:03:00]} Rxd4 {[%emt 0:01:17]} 48. Ng6+ {[%emt 0:00:23]} 1/2-1/2

[Event "Turkish Club Cup 2019"]
[Site "Konya"]
[Date "2019.07.18"]
[Round "5"]
[White "Guner, Sati Emre"]
[Black "Eren, Yusuf Kemal"]
[Result "1/2-1/2"]
[ECO "B51"]
[WhiteElo "1912"]
[BlackElo "1858"]
[Annotator "NA"]
[PlyCount "71"]
[EventDate "2019.07.16"]
[EventType "team-tourn"]
[EventCountry "TUR"]
[SourceTitle "playchess.com"]
[Source "ChessBase"]
[SourceQuality "1"]
[TimeControl "5400+30"]

1. e4 {[%emt 0:00:30]} c5 {[%emt 0:00:30]} 2. Nf3 {[%emt 0:00:30]} d6 {[%emt 0:00:00]} 3. Bb5+ {[%emt 0:00:00]} Nd7 {[%emt 0:01:00]} 4. d4 {[%emt 0:00:00]} cxd4 {[%emt 0:00:30]} 5. Qxd4 {[%emt 0:00:30]} Ngf6 {[%emt 0:00:30]} 6. Nc3 {[%emt 0:00:30]} e5 {[%emt 0:00:30]} 7. Qd3 {[%emt 0:00:30]} h6 {[%emt 0:00:30]} 8. O-O {[%emt 0:03:30]} Be7 {[%emt 0:02:30]} 9. Be3 {[%emt 0:00:30]} O-O {[%emt 0:01:30]} 10. Rad1 {[%emt 0:00:30]} a6 {[%emt 0:01:30]} 11. Ba4 {[%emt 0:01:30]} Qc7 {[%emt 0:00:30]} 12. Bb3 {[%emt 0:00:30]} b5 {[%emt 0:08:30]} 13. Nh4 {[%emt 0:00:30]} Nc5 {[%emt 0:11:30]} 14. Bxc5 {[%emt 0:02:30]} dxc5 {[%emt 0:01:30]} 15. Bd5 {[%emt 0:03:30]} Ra7 {[%emt 0:21:30]} 16. Ng6 {[%emt 0:11:30]} Re8 {[%emt 0:01:30]} 17. Nxe7+ {[%emt 0:04:30]} Rxe7 {[%emt 0:06:30]} 18. Qe3 {[%emt 0:05:30]} Be6 {[%emt 0:08:30]} 19. Rd2 {[%emt 0:03:30]} b4 {[%emt 0:09:30]} 20. Na4 {[%emt 0:01:30]} c4 {[%emt 0:00:30]} 21. Rfd1 {[%emt 0:05:30]} Bd7 {[%emt 0:00:30]} 22. b3 {[%emt 0:08:30]} c3 {[%emt 0:00:30]} 23. Re2 {[%emt 0:02:30]} Bxa4 {[%emt 0:01:30]} 24. bxa4 {[%emt 0:00:30]} Qa5 {[%emt 0:00:30]} 25. Bb3 {[%emt 0:00:00]} Rad7 {[%emt 0:00:30]} 26. Ree1 {[%emt 0:01:00]} Qd8 {[%emt 0:00:30]} 27. Rxd7 {[%emt 0:00:30]} Rxd7 {[%emt 0:00:30]} 28. h3 {[%emt 0:00:00]} Rd4 {[%emt 0:00:36]} 29. f3 {[%emt 0:01:00]} Nh5 {[%emt 0:00:24]} 30. Re2 {[%emt 0:03:30]} Rd1+ {[%emt 0:06:54]} 31. Re1 {[%emt 0:01:30]} Rd2 {[%emt 0:00:51]} 32. Re2 {[%emt 0:03:30]} Nf4 {[%emt 0:05:56]} 33. Rf2 {[%emt 0:01:30]} Qg5 {[%emt 0:01:01]} 34. Kh2 {[%emt 0:00:30]} Nxh3 {[%emt 0:02:23]} 35. Qa7 {[%emt 0:00:30]} Rxf2 {[%emt 0:02:47]} 36. Qxf7+ {[%emt 0:00:30]} 1/2-1/2

[Event "Turkish Club Cup 2019"]
[Site "Konya"]
[Date "2019.07.18"]
[Round "5"]
[White "Emir, Emirhan"]
[Black "Toren, Kadir"]
[Result "1-0"]
[ECO "A36"]
[WhiteElo "1904"]
[BlackElo "1736"]
[Annotator "NA"]
[PlyCount "105"]
[EventDate "2019.07.16"]
[EventType "team-tourn"]
[EventCountry "TUR"]
[SourceTitle "playchess.com"]
[Source "ChessBase"]
[SourceQuality "1"]
[TimeControl "5400+30"]

1. c4 {[%emt 0:00:30]} c5 {[%emt 0:00:30]} 2. Nc3 {[%emt 0:00:30]} Nc6 {[%emt 0:00:30]} 3. g3 {[%emt 0:00:00]} g6 {[%emt 0:00:00]} 4. Bg2 {[%emt 0:00:00]} Bg7 {[%emt 0:00:00]} 5. d3 {[%emt 0:00:00]} d6 {[%emt 0:00:30]} 6. e3 {[%emt 0:02:00]} e6 {[%emt 0:00:30]} 7. Nge2 {[%emt 0:00:00]} Nge7 {[%emt 0:00:00]} 8. O-O {[%emt 0:00:00]} O-O {[%emt 0:00:00]} 9. a3 {[%emt 0:00:30]} a6 {[%emt 0:01:30]} 10. Rb1 {[%emt 0:00:30]} Rb8 {[%emt 0:00:30]} 11. b4 {[%emt 0:01:30]} b6 {[%emt 0:02:30]} 12. d4 {[%emt 0:01:30]} cxb4 {[%emt 0:06:30]} 13. axb4 {[%emt 0:00:00]} d5 {[%emt 0:00:30]} 14. cxd5 {[%emt 0:02:00]} exd5 {[%emt 0:03:30]} 15. Qb3 {[%emt 0:00:30]} Bf5 {[%emt 0:03:30]} 16. Ra1 {[%emt 0:00:30]} Bd3 {[%emt 0:01:30]} 17. Ba3 {[%emt 0:07:30]} Bc4 {[%emt 0:02:30]} 18. Qc2 {[%emt 0:01:30]} b5 {[%emt 0:00:30]} 19. Qd2 {[%emt 0:01:30]} a5 {[%emt 0:01:30]} 20. Rfb1 {[%emt 0:10:30]} Qd6 {[%emt 0:01:30]} 21. Na2 {[%emt 0:01:30]} Ra8 {[%emt 0:08:30]} 22. bxa5 {[%emt 0:00:30]} Qc7 {[%emt 0:06:30]} 23. Bxe7 {[%emt 0:03:30]} Qxe7 {[%emt 0:02:30]} 24. Nac1 {[%emt 0:00:30]} Ra7 {[%emt 0:08:30]} 25. Nc3 {[%emt 0:01:30]} Qg5 {[%emt 0:11:30]} 26. Nxb5 {[%emt 0:04:30]} Re7 {[%emt 0:06:30]} 27. h4 {[%emt 0:01:30]} Qh6 {[%emt 0:00:30]} 28. Ra4 {[%emt 0:01:30]} Re6 {[%emt 0:10:30]} 29. Rxc4 {[%emt 0:01:30]} dxc4 {[%emt 0:00:30]} 30. d5 {[%emt 0:00:30]} c3 {[%emt 0:02:56]} 31. Qc2 {[%emt 0:00:30]} Rxe3 {[%emt 0:03:32]} 32. fxe3 {[%emt 0:00:30]} Qxe3+ {[%emt 0:00:04]} 33. Qf2 {[%emt 0:04:30]} c2 {[%emt 0:01:06]} 34. Ra1 {[%emt 0:00:00]} Qxf2+ {[%emt 0:00:49]} 35. Kxf2 {[%emt 0:00:00]} Bxa1 {[%emt 0:00:30]} 36. dxc6 {[%emt 0:00:30]} Bb2 {[%emt 0:00:35]} 37. Nb3 {[%emt 0:00:00]} c1=Q {[%emt 0:01:42]} 38. Nxc1 {[%emt 0:00:00]} Bxc1 {[%emt 0:00:00]} 39. a6 {[%emt 0:00:30]} f5 {[%emt 0:07:19]} 40. c7 {[%emt 0:00:30]} f4 {[%emt 0:01:14]} 41. g4 {[%emt 0:00:30]} Be3+ {[%emt 0:00:24]} 42. Ke2 {[%emt 0:00:30]} f3+ {[%emt 0:03:59]} 43. Bxf3 {[%emt 0:00:00]} Bf4 {[%emt 0:00:29]} 44. a7 {[%emt 0:00:00]} Re8+ {[%emt 0:00:13]} 45. Kf1 {[%emt 0:00:30]} Kf7 {[%emt 0:01:33]} 46. a8=Q {[%emt 0:00:30]} Rxa8 {[%emt 0:00:30]} 47. Bxa8 {[%emt 0:00:30]} Bxc7 {[%emt 0:00:30]} 48. Nxc7 {[%emt 0:00:00]} Kf6 {[%emt 0:00:00]} 49. Kg2 {[%emt 0:00:00]} Ke5 {[%emt 0:00:00]} 50. Kf3 {[%emt 0:00:00]} Kd6 {[%emt 0:00:06]} 51. Kf4 {[%emt 0:00:00]} h6 {[%emt 0:00:16]} 52. Nb5+ {[%emt 0:00:00]} Ke6 {[%emt 0:00:22]} 53. Be4 {[%emt 0:00:00]} 1-0

[Event "Turkish Club Cup 2019"]
[Site "Konya"]
[Date "2019.07.18"]
[Round "5"]
[White "Inan, Canberk"]
[Black "Akcan, Umit"]
[Result "1/2-1/2"]
[ECO "B36"]
[WhiteElo "1895"]
[BlackElo "1960"]
[Annotator "NA"]
[PlyCount "66"]
[EventDate "2019.07.16"]
[EventType "team-tourn"]
[EventCountry "TUR"]
[SourceTitle "playchess.com"]
[Source "ChessBase"]
[SourceQuality "1"]
[TimeControl "5400+30"]

1. e4 {[%emt 0:00:30]} c5 {[%emt 0:00:30]} 2. Nf3 {[%emt 0:00:00]} Nc6 {[%emt 0:00:30]} 3. d4 {[%emt 0:00:00]} cxd4 {[%emt 0:00:30]} 4. Nxd4 {[%emt 0:00:00]} g6 {[%emt 0:00:30]} 5. c4 {[%emt 0:00:00]} Nf6 {[%emt 0:02:30]} 6. Nc3 {[%emt 0:00:30]} d6 {[%emt 0:00:00]} 7. Be2 {[%emt 0:00:30]} Nxd4 {[%emt 0:00:00]} 8. Qxd4 {[%emt 0:00:30]} Bg7 {[%emt 0:00:00]} 9. Be3 {[%emt 0:02:30]} O-O {[%emt 0:00:00]} 10. Qd2 {[%emt 0:00:30]} a5 {[%emt 0:00:00]} 11. O-O {[%emt 0:02:30]} a4 {[%emt 0:00:00]} 12. Rac1 {[%emt 0:00:30]} Qa5 {[%emt 0:00:30]} 13. f3 {[%emt 0:08:30]} Be6 {[%emt 0:00:00]} 14. Nd5 {[%emt 0:11:30]} Qxd2 {[%emt 0:05:00]} 15. Nxe7+ {[%emt 0:00:30]} Kh8 {[%emt 0:00:30]} 16. Bxd2 {[%emt 0:00:30]} Rfe8 {[%emt 0:00:00]} 17. Nd5 {[%emt 0:00:30]} Nxd5 {[%emt 0:00:00]} 18. cxd5 {[%emt 0:00:30]} Bxd5 {[%emt 0:00:00]} 19. Bb5 {[%emt 0:01:30]} Re5 {[%emt 0:00:00]} 20. Bxa4 {[%emt 0:04:30]} Bxa2 21. b3 {[%emt 0:12:30]} Rc5 {[%emt 0:41:00]} 22. Rxc5 {[%emt 0:17:30]} Bd4+ {[%emt 0:00:30]} 23. Kh1 {[%emt 0:00:30]} dxc5 {[%emt 0:00:30]} 24. Rc1 {[%emt 0:00:00]} b5 {[%emt 0:08:30]} 25. Bxb5 {[%emt 0:00:00]} Bxb3 {[%emt 0:00:00]} 26. h3 {[%emt 0:01:30]} Kg7 {[%emt 0:08:00]} 27. Kh2 {[%emt 0:03:30]} Ra2 {[%emt 0:06:30]} 28. Bf4 {[%emt 0:05:30]} Kf6 {[%emt 0:06:30]} 29. Bd6 {[%emt 0:05:30]} Bc2 {[%emt 0:03:30]} 30. Bc4 {[%emt 0:11:16]} Rb2 {[%emt 0:00:07]} 31. Kg3 {[%emt 0:01:03]} h5 {[%emt 0:06:22]} 32. h4 {[%emt 0:02:01]} Ba4 {[%emt 0:00:13]} 33. f4 {[%emt 0:04:23]} Bc6 {[%emt 0:05:19]} 1/2-1/2

[Event "Turkish Club Cup 2019"]
[Site "Konya"]
[Date "2019.07.18"]
[Round "5"]
[White "Karahan, Anil"]
[Black "Senturk, Necaattin"]
[Result "1/2-1/2"]
[ECO "A14"]
[WhiteElo "1889"]
[BlackElo "1704"]
[Annotator "NA"]
[PlyCount "52"]
[EventDate "2019.07.16"]
[EventType "team-tourn"]
[EventCountry "TUR"]
[SourceTitle "playchess.com"]
[Source "ChessBase"]
[SourceQuality "1"]
[TimeControl "5400+30"]

1. Nf3 {[%emt 0:00:30]} d5 {[%emt 0:00:30]} 2. c4 {[%emt 0:00:30]} e6 {[%emt 0:02:30]} 3. g3 {[%emt 0:00:30]} Nf6 {[%emt 0:00:00]} 4. Bg2 {[%emt 0:00:00]} Be7 {[%emt 0:00:00]} 5. O-O {[%emt 0:00:00]} O-O {[%emt 0:00:30]} 6. b3 {[%emt 0:00:00]} Nbd7 {[%emt 0:02:30]} 7. Bb2 {[%emt 0:00:00]} c6 {[%emt 0:00:00]} 8. d3 {[%emt 0:00:30]} Qb6 {[%emt 0:00:00]} 9. Nbd2 {[%emt 0:01:30]} a5 {[%emt 0:08:30]} 10. a3 {[%emt 0:02:30]} h6 {[%emt 0:08:30]} 11. e4 {[%emt 0:07:30]} dxe4 {[%emt 0:01:30]} 12. dxe4 {[%emt 0:00:30]} Nc5 {[%emt 0:00:00]} 13. Qc2 {[%emt 0:00:30]} Rd8 {[%emt 0:00:00]} 14. e5 {[%emt 0:04:30]} Nh7 {[%emt 0:00:30]} 15. Bc3 {[%emt 0:07:30]} Ng5 {[%emt 0:01:30]} 16. h4 {[%emt 0:04:30]} Nxf3+ {[%emt 0:05:30]} 17. Bxf3 {[%emt 0:00:30]} Qc7 {[%emt 0:02:30]} 18. Rfe1 {[%emt 0:11:30]} b6 {[%emt 0:00:30]} 19. Nf1 {[%emt 0:24:30]} Bb7 {[%emt 0:15:30]} 20. Rad1 {[%emt 0:00:30]} Rxd1 {[%emt 0:06:30]} 21. Rxd1 {[%emt 0:02:30]} Rd8 {[%emt 0:01:30]} 22. Ne3 {[%emt 0:06:30]} Qc8 {[%emt 0:06:30]} 23. Kh2 {[%emt 0:00:30]} Qc7 {[%emt 0:00:30]} 24. Kg1 {[%emt 0:00:00]} Qc8 {[%emt 0:00:00]} 25. Kh2 {[%emt 0:00:00]} Qc7 {[%emt 0:00:00]} 26. Kg1 {[%emt 0:00:00]} Qc8 {[%emt 0:00:30]} 1/2-1/2

[Event "Turkish Club Cup 2019"]
[Site "Konya"]
[Date "2019.07.18"]
[Round "5"]
[White "Cevrin, Muhammed Cemre"]
[Black "Salman, Ilhan Serhat"]
[Result "1-0"]
[ECO "B20"]
[WhiteElo "1860"]
[BlackElo "1950"]
[Annotator "NA"]
[PlyCount "59"]
[EventDate "2019.07.16"]
[EventType "team-tourn"]
[EventCountry "TUR"]
[SourceTitle "playchess.com"]
[Source "ChessBase"]
[SourceQuality "1"]
[TimeControl "5400+30"]

1. e4 {[%emt 0:00:30]} c5 {[%emt 0:00:30]} 2. b3 {[%emt 0:00:00]} Nc6 {[%emt 0:03:30]} 3. Bb2 {[%emt 0:05:00]} d6 {[%emt 0:00:30]} 4. Nc3 {[%emt 0:01:30]} Nf6 {[%emt 0:00:30]} 5. Bb5 {[%emt 0:01:30]} Bd7 {[%emt 0:01:30]} 6. d3 {[%emt 0:04:30]} g6 {[%emt 0:00:30]} 7. Nf3 {[%emt 0:02:30]} Bg7 {[%emt 0:01:30]} 8. O-O {[%emt 0:00:30]} O-O {[%emt 0:00:00]} 9. Ne2 {[%emt 0:04:30]} a6 {[%emt 0:07:00]} 10. Bxc6 {[%emt 0:01:30]} Bxc6 {[%emt 0:00:00]} 11. c4 {[%emt 0:18:30]} Qc7 {[%emt 0:14:00]} 12. Qc2 {[%emt 0:05:30]} b6 {[%emt 0:20:30]} 13. Ng3 {[%emt 0:04:30]} Qb7 {[%emt 0:01:30]} 14. Nh4 {[%emt 0:07:30]} e6 {[%emt 0:11:30]} 15. f4 {[%emt 0:18:30]} d5 {[%emt 0:01:30]} 16. cxd5 {[%emt 0:09:47]} exd5 {[%emt 0:00:30]} 17. e5 {[%emt 0:00:00]} Nd7 {[%emt 0:03:30]} 18. d4 {[%emt 0:00:29]} cxd4 {[%emt 0:03:30]} 19. Bxd4 {[%emt 0:00:04]} f5 {[%emt 0:00:30]} 20. Nhxf5 {[%emt 0:02:18]} gxf5 {[%emt 0:00:30]} 21. Nxf5 {[%emt 0:00:00]} Bb5 {[%emt 0:00:30]} 22. Rf3 {[%emt 0:01:28]} Rxf5 {[%emt 0:09:03]} 23. Qxf5 {[%emt 0:00:30]} Nf8 {[%emt 0:00:00]} 24. Qg4 {[%emt 0:01:11]} Be2 {[%emt 0:00:20]} 25. f5 {[%emt 0:01:51]} Bxf3 {[%emt 0:00:19]} 26. gxf3 {[%emt 0:01:49]} Ra7 {[%emt 0:02:38]} 27. Kh1 {[%emt 0:00:55]} Kh8 {[%emt 0:03:13]} 28. f6 {[%emt 0:00:35]} Bh6 {[%emt 0:00:54]} 29. e6 {[%emt 0:00:46]} Nxe6 {[%emt 0:06:53]} 30. f7+ {[%emt 0:00:25]} 1-0

[Event "Turkish Club Cup 2019"]
[Site "Konya"]
[Date "2019.07.18"]
[Round "5"]
[White "Kiziltas, Inanc Vefa"]
[Black "Subasi, Cagrican"]
[Result "1/2-1/2"]
[ECO "E91"]
[WhiteElo "1858"]
[BlackElo "1871"]
[Annotator "NA RC"]
[PlyCount "111"]
[EventDate "2019.07.16"]
[EventType "team-tourn"]
[EventCountry "TUR"]
[SourceTitle "playchess.com"]
[Source "ChessBase"]
[SourceQuality "1"]
[TimeControl "5400+30"]

1. Nf3 {[%emt 0:00:30]} Nf6 {[%emt 0:00:30]} 2. c4 {[%emt 0:00:00]} g6 {[%emt 0:00:30]} 3. e3 {[%emt 0:01:00]} Bg7 {[%emt 0:00:30]} 4. Be2 {[%emt 0:00:30]} O-O {[%emt 0:00:30]} 5. O-O {[%emt 0:00:00]} c5 {[%emt 0:01:30]} 6. Nc3 {[%emt 0:00:00]} d6 {[%emt 0:00:30]} 7. d4 {[%emt 0:00:00]} Nc6 {[%emt 0:08:30]} 8. d5 {[%emt 0:01:00]} Ne5 {[%emt 0:00:30]} 9. Nxe5 {[%emt 0:01:30]} dxe5 {[%emt 0:00:30]} 10. e4 {[%emt 0:00:00]} Ne8 {[%emt 0:00:00]} 11. Be3 {[%emt 0:01:00]} b6 {[%emt 0:00:00]} 12. Qd2 {[%emt 0:00:30]} Nd6 {[%emt 0:02:30]} 13. Bh6 {[%emt 0:02:30]} a6 {[%emt 0:05:30]} 14. a4 {[%emt 0:01:30]} Bd7 {[%emt 0:00:00]} 15. Bxg7 {[%emt 0:02:30]} Kxg7 {[%emt 0:00:00]} 16. f4 {[%emt 0:01:30]} exf4 {[%emt 0:02:30]} 17. Qxf4 {[%emt 0:00:30]} f6 {[%emt 0:00:00]} 18. h4 {[%emt 0:02:30]} Nf7 {[%emt 0:00:00]} 19. g4 {[%emt 0:01:30]} Qb8 {[%emt 0:00:30]} 20. Qe3 {[%emt 0:01:30]} Qe5 {[%emt 0:03:30]} 21. Rad1 {[%emt 0:00:30]} Nd6 {[%emt 0:01:30]} 22. Rf2 {[%emt 0:09:30]} Rab8 {[%emt 0:13:30]} 23. Rg2 {[%emt 0:05:30]} h6 {[%emt 0:08:30]} 24. Bd3 {[%emt 0:08:30]} b5 {[%emt 0:06:30]} 25. Qxc5 {[%emt 0:05:30]} bxc4 {[%emt 0:01:30]} 26. Bb1 {[%emt 0:00:30]} Rb7 {[%emt 0:14:30]} 27. Qa5 {[%emt 0:22:30]} Rfb8 {[%emt 0:02:30]} 28. Rdd2 {[%emt 0:00:30]} Rb3 {[%emt 0:05:30]} 29. Ba2 {[%emt 0:00:30]} R3b6 {[%emt 0:05:59]} 30. Qc5 {[%emt 0:01:30]} R6b7 {[%emt 0:02:49]} 31. Bb1 {[%emt 0:02:30]} g5 {[%emt 0:01:38]} 32. h5 {[%emt 0:01:30]} Rb4 {[%emt 0:00:10]} 33. Qa7 {[%emt 0:05:30]} R8b7 {[%emt 0:03:42]} 34. Qxa6 {[%emt 0:07:30]} Qf4 {[%emt 0:03:53]} 35. e5 {[%emt 0:01:54]} fxe5 {[%emt 0:00:16]} 36. Bg6 {[%emt 0:03:04]} Bxg4 {[%emt 0:02:17]} 37. Rdf2 {[%emt 0:02:55]} Qc1+ {[%emt 0:01:29]} 38. Kh2 {[%emt 0:02:49]} Rxb2 {[%emt 0:01:09]} 39. Ne4 {[%emt 0:01:18]} R2b6 {[%emt 0:00:47]} 40. Qa8 {[%emt 0:01:30]} Rb8 {[%emt 0:00:03]} 41. Qa7 {[%emt 0:01:03]} R6b7 {[%emt 0:00:30]} 42. Qa6 {[%emt 0:00:00]} Qa3 {[%emt 0:00:49]} 43. Rxg4 {[%emt 0:01:35]} Qe3 {[%emt 0:00:03]} 44. Rgg2 {[%emt 0:00:34]} Rb3 {[%emt 0:00:05]} 45. Rg3 {[%emt 0:02:18]} Qd4 {[%emt 0:00:18]} 46. Rgg2 {[%emt 0:01:26]} Nxe4 {[%emt 0:00:56]} 47. Rf7+ {[%emt 0:00:35]} Kg8 {[%emt 0:00:30]} 48. Bh7+ {[%emt 0:00:00]} Kh8 {[%emt 0:00:44]} 49. Qxh6 {[%emt 0:00:25]} Rh3+ {[%emt 0:00:00]} 50. Kxh3 {[%emt 0:00:24]} Nf2+ {[%emt 0:00:00]} 51. Rgxf2 {[%emt 0:00:59]} Qh4+ {[%emt 0:00:26]} 52. Kg2 {[%emt 0:00:30]} Qg4+ {[%emt 0:00:00]} 53. Kh2 {[%emt 0:00:44]} Qh4+ {[%emt 0:00:04]} 54. Kg2 {[%emt 0:00:25]} Qg4+ {[%emt 0:00:08]} 55. Kh1 {[%emt 0:00:27]} Qh3+ {[%emt 0:00:30]} 56. Rh2 {[%emt 0:00:55]} 1/2-1/2

[Event "Turkish Club Cup 2019"]
[Site "Konya"]
[Date "2019.07.18"]
[Round "5"]
[White "Ozoglu, Berker"]
[Black "Ulusoy, Kemal"]
[Result "1-0"]
[ECO "C00"]
[WhiteElo "1854"]
[BlackElo "1563"]
[Annotator "NA"]
[PlyCount "55"]
[EventDate "2019.07.16"]
[EventType "team-tourn"]
[EventCountry "TUR"]
[SourceTitle "playchess.com"]
[Source "ChessBase"]
[SourceQuality "1"]
[TimeControl "5400+30"]

1. e4 {[%emt 0:00:30]} e6 {[%emt 0:00:30]} 2. Qe2 {[%emt 0:00:30]} d5 {[%emt 0:00:30]} 3. exd5 {[%emt 0:00:30]} Qxd5 {[%emt 0:00:30]} 4. Nc3 {[%emt 0:00:00]} Qd8 {[%emt 0:00:30]} 5. g3 {[%emt 0:00:00]} Bd7 {[%emt 0:00:30]} 6. Bg2 {[%emt 0:00:30]} Bc6 {[%emt 0:00:30]} 7. Nf3 {[%emt 0:00:00]} Nf6 {[%emt 0:00:00]} 8. O-O {[%emt 0:00:00]} Bd6 {[%emt 0:01:00]} 9. d4 {[%emt 0:00:00]} O-O {[%emt 0:00:30]} 10. Bg5 {[%emt 0:00:00]} Nbd7 {[%emt 0:05:30]} 11. Ne5 {[%emt 0:09:30]} Bxg2 {[%emt 0:03:30]} 12. Kxg2 {[%emt 0:00:30]} Be7 {[%emt 0:00:30]} 13. Rad1 {[%emt 0:05:30]} c6 {[%emt 0:01:30]} 14. h4 {[%emt 0:01:30]} Nd5 {[%emt 0:08:30]} 15. Bxe7 {[%emt 0:01:30]} Qxe7 {[%emt 0:00:30]} 16. Ne4 {[%emt 0:00:30]} Nxe5 {[%emt 0:04:30]} 17. dxe5 {[%emt 0:00:30]} Rad8 {[%emt 0:11:30]} 18. c4 {[%emt 0:08:30]} f5 {[%emt 0:04:30]} 19. cxd5 {[%emt 0:00:30]} fxe4 {[%emt 0:00:30]} 20. d6 {[%emt 0:00:30]} Qd7 {[%emt 0:02:30]} 21. Qxe4 {[%emt 0:00:30]} Rf7 {[%emt 0:02:30]} 22. Rc1 {[%emt 0:10:30]} Rdf8 {[%emt 0:06:30]} 23. f4 {[%emt 0:00:30]} Qd8 {[%emt 0:04:30]} 24. Qc4 {[%emt 0:00:30]} Qd7 {[%emt 0:06:30]} 25. Rc3 {[%emt 0:02:30]} Rc8 {[%emt 0:00:30]} 26. f5 {[%emt 0:00:30]} Re8 {[%emt 0:02:30]} 27. Rcf3 {[%emt 0:00:30]} Qc8 {[%emt 0:05:30]} 28. fxe6 {[%emt 0:01:30]} 1-0

[Event "Turkish Club Cup 2019"]
[Site "Konya"]
[Date "2019.07.18"]
[Round "5"]
[White "Yuksel, Davut Can"]
[Black "Kara, Ali Barkin"]
[Result "1/2-1/2"]
[ECO "A52"]
[WhiteElo "1845"]
[BlackElo "1749"]
[Annotator "NA"]
[PlyCount "64"]
[EventDate "2019.07.16"]
[EventType "team-tourn"]
[EventCountry "TUR"]
[SourceTitle "playchess.com"]
[Source "ChessBase"]
[SourceQuality "1"]
[TimeControl "5400+30"]

1. d4 {[%emt 0:00:30]} Nf6 {[%emt 0:00:30]} 2. c4 {[%emt 0:00:00]} e5 {[%emt 0:00:30]} 3. dxe5 {[%emt 0:00:00]} Ng4 {[%emt 0:00:30]} 4. Bf4 {[%emt 0:00:30]} d6 {[%emt 0:00:00]} 5. Nf3 {[%emt 0:03:30]} Nc6 {[%emt 0:00:00]} 6. h3 {[%emt 0:01:30]} Ngxe5 {[%emt 0:00:00]} 7. Nxe5 {[%emt 0:00:00]} Nxe5 {[%emt 0:00:00]} 8. e3 {[%emt 0:00:00]} Be6 {[%emt 0:02:30]} 9. Qb3 {[%emt 0:02:30]} Rb8 {[%emt 0:05:30]} 10. Nc3 {[%emt 0:02:30]} Nd7 {[%emt 0:02:30]} 11. Be2 {[%emt 0:01:30]} g6 {[%emt 0:00:30]} 12. O-O {[%emt 0:02:30]} Bg7 {[%emt 0:00:30]} 13. Rfd1 {[%emt 0:04:30]} O-O {[%emt 0:00:30]} 14. Qc2 {[%emt 0:01:30]} g5 {[%emt 0:12:30]} 15. Bh2 {[%emt 0:02:30]} f5 {[%emt 0:00:00]} 16. Nb5 {[%emt 0:00:30]} f4 {[%emt 0:14:00]} 17. exf4 {[%emt 0:00:30]} gxf4 {[%emt 0:00:00]} 18. Nd4 {[%emt 0:01:30]} Qe7 {[%emt 0:08:00]} 19. Nxe6 {[%emt 0:04:30]} Qxe6 {[%emt 0:00:30]} 20. Bg4 {[%emt 0:03:30]} Qe7 {[%emt 0:01:30]} 21. Bf5 {[%emt 0:09:30]} Be5 {[%emt 0:02:30]} 22. Be4 {[%emt 0:21:30]} Nc5 {[%emt 0:02:30]} 23. Bd5+ {[%emt 0:02:30]} Kh8 {[%emt 0:03:30]} 24. Rab1 {[%emt 0:02:30]} c6 {[%emt 0:04:30]} 25. b4 {[%emt 0:05:30]} Nd7 {[%emt 0:05:30]} 26. Be4 {[%emt 0:02:30]} Rg8 {[%emt 0:01:30]} 27. Bf3 {[%emt 0:04:30]} Rg7 {[%emt 0:04:30]} 28. Re1 {[%emt 0:03:09]} Qg5 {[%emt 0:03:30]} 29. Kf1 {[%emt 0:02:48]} Rf8 {[%emt 0:02:30]} 30. b5 {[%emt 0:02:43]} c5 {[%emt 0:03:30]} 31. Rbd1 {[%emt 0:01:15]} Nf6 {[%emt 0:05:11]} 32. Rd3 {[%emt 0:02:13]} Nd7 {[%emt 0:01:36]} 1/2-1/2